[Event "*** Titled Tuesday 3|2 Blitz"]
[Site "Chess.com"]
[Date "2017.03.07"]
[Round "3"]
[White "danyuffa"]
[Black "Lupul_Cenusiu"]
[Result "0-1"]
[WhiteElo "2520"]
[BlackElo "2415"]
[TimeControl "180+2"]
[EndTime "13:41:09 PST"]
[Termination "Lupul_Cenusiu won by resignation"]

1. d4 {[%clk 0:03:02]} 1... Nf6 {[%clk 0:03:00.1]} 2. c4 {[%clk 0:03:02.9]} 2...
c5 {[%clk 0:03:01]} 3. d5 {[%clk 0:03:03.6]} 3... g6 {[%clk 0:03:01.9]} 4. Nc3
{[%clk 0:03:04.4]} 4... Bg7 {[%clk 0:03:03.1]} 5. Nf3 {[%clk 0:03:06]} 5... O-O
{[%clk 0:03:04.1]} 6. e4 {[%clk 0:03:07]} 6... e6 {[%clk 0:03:05]} 7. Bg5 {[%clk
0:03:07.7]} 7... h6 {[%clk 0:03:02.4]} 8. Bh4 {[%clk 0:03:07.8]} 8... d6 {[%clk
0:03:03]} 9. Nd2 {[%clk 0:03:08]} 9... Re8 {[%clk 0:02:58.3]} 10. Be2 {[%clk
0:03:05.7]} 10... b6 {[%clk 0:02:46.9]} 11. O-O {[%clk 0:03:00.2]} 11... exd5
{[%clk 0:02:47]} 12. cxd5 {[%clk 0:02:56.6]} 12... Ba6 {[%clk 0:02:47.5]} 13.
Re1 {[%clk 0:02:42.2]} 13... Bxe2 {[%clk 0:02:47.9]} 14. Rxe2 {[%clk 0:02:43.6]}
14... a6 {[%clk 0:02:48.5]} 15. a4 {[%clk 0:02:43.6]} 15... g5 {[%clk
0:02:45.8]} 16. Bg3 {[%clk 0:02:44.1]} 16... Nh5 {[%clk 0:02:46.3]} 17. Nc4
{[%clk 0:02:34]} 17... Nxg3 {[%clk 0:02:46.2]} 18. hxg3 {[%clk 0:02:30.9]} 18...
Ra7 {[%clk 0:02:47.3]} 19. Qc2 {[%clk 0:02:17.1]} 19... Rb7 {[%clk 0:02:46.4]}
20. Ne3 {[%clk 0:02:14.2]} 20... b5 {[%clk 0:02:43.7]} 21. axb5 {[%clk 0:02:14]}
21... axb5 {[%clk 0:02:44.6]} 22. Nf5 {[%clk 0:02:09.6]} 22... b4 {[%clk
0:02:35.4]} 23. Nd1 {[%clk 0:02:10.1]} 23... b3 {[%clk 0:02:36.5]} 24. Qd3
{[%clk 0:02:06]} 24... Rb4 {[%clk 0:02:33.3]} 25. Nde3 {[%clk 0:01:53.8]} 25...
Bf8 {[%clk 0:01:58.5]} 26. Nc4 {[%clk 0:01:42.8]} 26... Qf6 {[%clk 0:01:37.7]}
27. Ra7 {[%clk 0:01:35.4]} 27... Rd8 {[%clk 0:01:35.6]} 28. g4 {[%clk
0:01:34.6]} 28... Nd7 {[%clk 0:01:34.4]} 29. Nce3 {[%clk 0:00:44.9]} 29... Ne5
{[%clk 0:01:31.6]} 30. Qa6 {[%clk 0:00:43.2]} 30... Rxe4 {[%clk 0:01:29]} 31. f3
{[%clk 0:00:29.1]} 31... Rb4 {[%clk 0:01:20.7]} 32. Qa5 {[%clk 0:00:28]} 32...
Rbb8 {[%clk 0:01:16.5]} 33. Ng3 {[%clk 0:00:24.2]} 33... Ng6 {[%clk 0:00:55.6]}
34. Nef5 {[%clk 0:00:22.8]} 34... Nf4 {[%clk 0:00:56.1]} 35. Re1 {[%clk
0:00:20.2]} 35... Qxb2 {[%clk 0:00:44.4]} 36. Ne3 {[%clk 0:00:16.1]} 36... Rbc8
{[%clk 0:00:39.6]} 37. Rb7 {[%clk 0:00:16.3]} 37... c4 {[%clk 0:00:39.9]} 38.
Qa7 {[%clk 0:00:16.6]} 38... Qd2 {[%clk 0:00:32.5]} 39. Rd1 {[%clk 0:00:10.5]}
39... Qc3 {[%clk 0:00:21]} 40. Rxf7 {[%clk 0:00:11.5]} 40... Ra8 {[%clk
0:00:22]} 41. Rxf8+ {[%clk 0:00:08.7]} 41... Rxf8 {[%clk 0:00:22.7]} 42. Qb6
{[%clk 0:00:07.2]} 42... Rab8 {[%clk 0:00:21.9]} 43. Qa7 {[%clk 0:00:08.2]}
43... Ra8 {[%clk 0:00:22.6]} 44. Qb6 {[%clk 0:00:09.4]} 44... Rfb8 {[%clk
0:00:23.6]} 45. Qxd6 {[%clk 0:00:10]} 45... Qxe3+ {[%clk 0:00:24.4]} 46. Kh2
{[%clk 0:00:11.5]} 46... Qb6 {[%clk 0:00:25.3]} 47. Qe5 {[%clk 0:00:11.8]} 47...
Re8 {[%clk 0:00:25.8]} 48. Qf5 {[%clk 0:00:12.9]} 48... Qg6 {[%clk 0:00:26.9]}
49. Qd7 {[%clk 0:00:13.3]} 49... Rad8 {[%clk 0:00:26.7]} 50. Qb5 {[%clk
0:00:14]} 50... c3 {[%clk 0:00:27.7]} 51. Nf5 {[%clk 0:00:14.5]} 51... c2 {[%clk
0:00:29]} 52. Rc1 {[%clk 0:00:14.1]} 52... Rb8 {[%clk 0:00:30]} 53. Qc4 {[%clk
0:00:14.6]} 53... b2 {[%clk 0:00:25.1]} 54. d6+ {[%clk 0:00:15.9]} 54... Kf8
{[%clk 0:00:25.7]} 55. Qxc2 {[%clk 0:00:13.2]} 55... bxc1=Q {[%clk 0:00:24.1]}
56. Qxc1 {[%clk 0:00:15.1]} 56... Qf6 {[%clk 0:00:25.3]} 57. Qc4 {[%clk
0:00:14]} 57... Red8 {[%clk 0:00:25.8]} 58. Qc7 {[%clk 0:00:14.4]} 58... Rbc8
{[%clk 0:00:25.4]} 59. Qh7 {[%clk 0:00:15]} 59... Rc2 {[%clk 0:00:24.1]} 60. Ne7
{[%clk 0:00:15.6]} 60... Rxg2+ {[%clk 0:00:24.5]} 61. Kh1 {[%clk 0:00:16.7]}
61... Qa1+ {[%clk 0:00:25.5]} 0-1

[Event "*** Titled Tuesday 3|2 Blitz"]
[Site "Chess.com"]
[Date "2017.03.07"]
[Round "3"]
[White "Rock700chess"]
[Black "RamonManon0g"]
[Result "1-0"]
[WhiteElo "2253"]
[BlackElo "2307"]
[TimeControl "180+2"]
[EndTime "13:41:22 PST"]
[Termination "Rock700chess won by resignation"]

1. e4 {[%clk 0:03:02]} 1... c5 {[%clk 0:03:00.6]} 2. d4 {[%clk 0:03:02.3]} 2...
cxd4 {[%clk 0:03:01.4]} 3. c3 {[%clk 0:03:02.5]} 3... dxc3 {[%clk 0:03:03.3]} 4.
Nxc3 {[%clk 0:03:04.1]} 4... e6 {[%clk 0:03:04.8]} 5. Nf3 {[%clk 0:03:01.3]}
5... Nc6 {[%clk 0:03:06.3]} 6. Bc4 {[%clk 0:02:56.9]} 6... Bb4 {[%clk
0:03:07.7]} 7. O-O {[%clk 0:02:48.9]} 7... Nge7 {[%clk 0:03:09.2]} 8. Qe2 {[%clk
0:02:44.1]} 8... O-O {[%clk 0:03:09.3]} 9. Rd1 {[%clk 0:02:40.6]} 9... Bxc3
{[%clk 0:03:07.8]} 10. bxc3 {[%clk 0:02:39.9]} 10... d5 {[%clk 0:03:08.3]} 11.
exd5 {[%clk 0:02:32.1]} 11... exd5 {[%clk 0:03:10.2]} 12. Bd3 {[%clk 0:02:32.9]}
12... Ng6 {[%clk 0:03:07.6]} 13. Ba3 {[%clk 0:02:19.1]} 13... Re8 {[%clk
0:03:08]} 14. Qd2 {[%clk 0:02:16.6]} 14... Bg4 {[%clk 0:03:05.7]} 15. Bxg6
{[%clk 0:01:40]} 15... hxg6 {[%clk 0:03:02.1]} 16. Qxd5 {[%clk 0:01:40.5]} 16...
Qf6 {[%clk 0:02:49.5]} 17. Re1 {[%clk 0:01:13.4]} 17... Qxc3 {[%clk 0:02:47.1]}
18. Qc5 {[%clk 0:01:04.3]} 18... Qxc5 {[%clk 0:02:34]} 19. Bxc5 {[%clk
0:01:06.2]} 19... Bxf3 {[%clk 0:02:35.4]} 20. gxf3 {[%clk 0:01:00.6]} 20... Ne5
{[%clk 0:02:36.3]} 21. Kg2 {[%clk 0:00:58.7]} 21... Nd3 {[%clk 0:02:30]} 22.
Rxe8+ {[%clk 0:00:56.7]} 22... Rxe8 {[%clk 0:02:31.9]} 23. Bxa7 {[%clk
0:00:54.7]} 23... Re2 {[%clk 0:02:25.9]} 24. Rb1 {[%clk 0:00:49]} 24... Rxa2
{[%clk 0:02:13.4]} 25. Rxb7 {[%clk 0:00:48.3]} 25... Ne1+ {[%clk 0:02:10.1]} 26.
Kg3 {[%clk 0:00:45.9]} 26... Ra3 {[%clk 0:02:08.7]} 27. Be3 {[%clk 0:00:44.7]}
27... Nc2 {[%clk 0:02:08.3]} 28. Rb8+ {[%clk 0:00:38]} 28... Kh7 {[%clk
0:02:08.9]} 29. Re8 {[%clk 0:00:39.9]} 29... f6 {[%clk 0:01:58.9]} 30. f4 {[%clk
0:00:37]} 30... Nd4 {[%clk 0:01:45.2]} 31. Kg4 {[%clk 0:00:36.6]} 31... Nf5
{[%clk 0:01:42.3]} 32. Kf3 {[%clk 0:00:37.6]} 32... Nd4+ {[%clk 0:01:26.7]} 33.
Ke4 {[%clk 0:00:36.7]} 33... Nf5 {[%clk 0:01:25.3]} 34. Kf3 {[%clk 0:00:35.8]}
34... Ra1 {[%clk 0:01:23.9]} 35. Rb8 {[%clk 0:00:34.9]} 35... Rh1 {[%clk
0:01:19.5]} 36. Kg2 {[%clk 0:00:33.7]} 36... Re1 {[%clk 0:01:19.5]} 37. Kf3
{[%clk 0:00:33.2]} 37... Ra1 {[%clk 0:01:09.4]} 38. Rb7 {[%clk 0:00:30.9]} 38...
Ra3 {[%clk 0:01:08.8]} 39. h3 {[%clk 0:00:28.3]} 39... Ra2 {[%clk 0:01:04.7]}
40. Rd7 {[%clk 0:00:26.8]} 40... Ra3 {[%clk 0:01:04.8]} 41. Rb7 {[%clk
0:00:24.5]} 41... Nh4+ {[%clk 0:01:04.5]} 42. Kg3 {[%clk 0:00:23.9]} 42... Nf5+
{[%clk 0:01:01.6]} 43. Kf3 {[%clk 0:00:25.1]} 43... Nd6 {[%clk 0:01:02.6]} 44.
Rc7 {[%clk 0:00:23.1]} 44... f5 {[%clk 0:01:02]} 45. Rd7 {[%clk 0:00:20.7]}
45... Ne4 {[%clk 0:01:03]} 46. Rd8 {[%clk 0:00:19.2]} 46... g5 {[%clk
0:00:59.6]} 47. fxg5 {[%clk 0:00:18.4]} 47... Nxg5+ {[%clk 0:01:00.9]} 48. Kg2
{[%clk 0:00:16.8]} 48... Nxh3 {[%clk 0:00:24.6]} 49. Bc1 {[%clk 0:00:14.8]}
49... Rb3 {[%clk 0:00:21.5]} 50. f3 {[%clk 0:00:14.3]} 50... Rc3 {[%clk
0:00:14.3]} 51. Bd2 {[%clk 0:00:12.7]} 51... Rb3 {[%clk 0:00:12.1]} 52. Kxh3
{[%clk 0:00:11.9]} 52... Rxf3+ {[%clk 0:00:13.4]} 53. Kh4 {[%clk 0:00:10.9]}
53... Rf2 {[%clk 0:00:12.3]} 54. Kg5 {[%clk 0:00:10.2]} 54... Rf1 {[%clk
0:00:09.3]} 55. Bf4 {[%clk 0:00:07.8]} 55... Rf2 {[%clk 0:00:04.4]} 56. Be3
{[%clk 0:00:07.5]} 56... Rf3 {[%clk 0:00:04.1]} 57. Bd4 {[%clk 0:00:06.1]} 57...
Rf1 {[%clk 0:00:03.6]} 58. Rd7 {[%clk 0:00:05.8]} 58... Rg1+ {[%clk 0:00:02]}
59. Bxg1 {[%clk 0:00:04.1]} 59... f4 {[%clk 0:00:03.5]} 60. Bd4 {[%clk
0:00:05.2]} 60... f3 {[%clk 0:00:04.3]} 61. Rxg7+ {[%clk 0:00:06.5]} 61... Kh8
{[%clk 0:00:06.2]} 62. Rf7+ {[%clk 0:00:07.5]} 62... Kg8 {[%clk 0:00:06.7]} 63.
Rxf3 {[%clk 0:00:09.4]} 1-0

[Event "*** Titled Tuesday 3|2 Blitz"]
[Site "Chess.com"]
[Date "2017.03.07"]
[Round "3"]
[White "Keranke"]
[Black "Gabix_94"]
[Result "1-0"]
[WhiteElo "2731"]
[BlackElo "2514"]
[TimeControl "180+2"]
[EndTime "13:41:23 PST"]
[Termination "Keranke won by resignation"]

1. d4 {[%clk 0:03:02]} 1... Nf6 {[%clk 0:03:00.8]} 2. Bf4 {[%clk 0:03:02.9]}
2... g6 {[%clk 0:02:58.2]} 3. h3 {[%clk 0:03:03.4]} 3... Bg7 {[%clk 0:02:59.1]}
4. Nf3 {[%clk 0:03:04.8]} 4... O-O {[%clk 0:02:59.9]} 5. e3 {[%clk 0:03:05.9]}
5... b6 {[%clk 0:02:59.8]} 6. Nbd2 {[%clk 0:03:04.6]} 6... Bb7 {[%clk 0:03:01]}
7. Be2 {[%clk 0:03:03.9]} 7... c5 {[%clk 0:03:02.1]} 8. O-O {[%clk 0:03:02.7]}
8... Nc6 {[%clk 0:03:02.3]} 9. c3 {[%clk 0:03:03]} 9... d5 {[%clk 0:03:02.3]}
10. a4 {[%clk 0:03:03.6]} 10... Nd7 {[%clk 0:03:03.5]} 11. Qb3 {[%clk
0:03:01.1]} 11... e6 {[%clk 0:03:03.2]} 12. Bd6 {[%clk 0:02:30.4]} 12... c4
{[%clk 0:02:44.9]} 13. Qa3 {[%clk 0:02:29.4]} 13... Re8 {[%clk 0:02:40]} 14. b3
{[%clk 0:02:27.9]} 14... cxb3 {[%clk 0:02:38.7]} 15. Nxb3 {[%clk 0:02:26.7]}
15... Nf6 {[%clk 0:02:34.4]} 16. c4 {[%clk 0:02:14.7]} 16... Ne4 {[%clk
0:02:28.5]} 17. Bh2 {[%clk 0:02:04.6]} 17... dxc4 {[%clk 0:02:15.3]} 18. Bxc4
{[%clk 0:02:05.6]} 18... Ng5 {[%clk 0:01:57.3]} 19. Be2 {[%clk 0:01:54.9]} 19...
Bf8 {[%clk 0:01:53.5]} 20. Qb2 {[%clk 0:01:54.2]} 20... Nb4 {[%clk 0:01:54.5]}
21. Ne5 {[%clk 0:01:47.3]} 21... Bd6 {[%clk 0:01:45.5]} 22. Nd2 {[%clk
0:01:37.8]} 22... f6 {[%clk 0:01:27.4]} 23. Ng4 {[%clk 0:01:27.1]} 23... Nd5
{[%clk 0:01:17.3]} 24. Bxd6 {[%clk 0:01:22.7]} 24... Qxd6 {[%clk 0:01:19.2]} 25.
e4 {[%clk 0:01:23.7]} 25... f5 {[%clk 0:01:10.8]} 26. Nc4 {[%clk 0:01:03.7]}
26... Qf8 {[%clk 0:00:57.1]} 27. exd5 {[%clk 0:00:56.2]} 27... fxg4 {[%clk
0:00:58]} 28. Bxg4 {[%clk 0:00:57.1]} 28... Bxd5 {[%clk 0:00:59.2]} 29. Ne3
{[%clk 0:00:56]} 29... Be4 {[%clk 0:00:54.5]} 30. a5 {[%clk 0:00:52.1]} 30...
Rab8 {[%clk 0:00:47.5]} 31. Qb5 {[%clk 0:00:49.7]} 31... Bf5 {[%clk 0:00:40]}
32. Rfc1 {[%clk 0:00:36]} 32... h5 {[%clk 0:00:35.1]} 33. Bxf5 {[%clk
0:00:32.8]} 33... gxf5 {[%clk 0:00:36.3]} 34. Rc7 {[%clk 0:00:29.9]} 34... Qd6
{[%clk 0:00:36.2]} 35. Rd7 {[%clk 0:00:29.8]} 35... Qf4 {[%clk 0:00:33.7]} 36.
Qe5 {[%clk 0:00:21.9]} 36... Qxe5 {[%clk 0:00:29.7]} 37. dxe5 {[%clk 0:00:23.8]}
37... bxa5 {[%clk 0:00:30.6]} 38. Rxa5 {[%clk 0:00:24.1]} 38... Ne4 {[%clk
0:00:24.3]} 39. Raxa7 {[%clk 0:00:22.2]} 39... Rb1+ {[%clk 0:00:21.7]} 40. Kh2
{[%clk 0:00:21.9]} 40... f4 {[%clk 0:00:23.1]} 41. Rg7+ {[%clk 0:00:22.7]} 41...
Kh8 {[%clk 0:00:24.3]} 42. Rh7+ {[%clk 0:00:23.2]} 42... Kg8 {[%clk 0:00:25.8]}
43. Rag7+ {[%clk 0:00:24.6]} 43... Kf8 {[%clk 0:00:27.3]} 44. Rf7+ {[%clk
0:00:15.5]} 44... Kg8 {[%clk 0:00:28.6]} 45. Rhg7+ {[%clk 0:00:16.6]} 45... Kh8
{[%clk 0:00:30]} 46. Rxf4 {[%clk 0:00:12.5]} 46... Kxg7 {[%clk 0:00:30.7]} 47.
Rxe4 {[%clk 0:00:14.2]} 47... Rf8 {[%clk 0:00:32.6]} 48. f3 {[%clk 0:00:13.3]}
48... Rd8 {[%clk 0:00:33.6]} 49. Kg3 {[%clk 0:00:14]} 49... Rd2 {[%clk
0:00:34.7]} 50. Kh4 {[%clk 0:00:14.1]} 50... Re2 {[%clk 0:00:34.4]} 51. Kxh5
{[%clk 0:00:08.9]} 51... Kf7 {[%clk 0:00:33.7]} 52. Kg4 {[%clk 0:00:08.5]} 52...
Rb3 {[%clk 0:00:34.7]} 53. Kf4 {[%clk 0:00:09.9]} 53... Rb8 {[%clk 0:00:34.9]}
54. g4 {[%clk 0:00:10.7]} 54... Rf8 {[%clk 0:00:36.4]} 55. Kg3 {[%clk
0:00:10.4]} 55... Kg6 {[%clk 0:00:37.8]} 56. h4 {[%clk 0:00:11.3]} 56... Rd8
{[%clk 0:00:38.1]} 57. h5+ {[%clk 0:00:12.6]} 57... Kg5 {[%clk 0:00:39.3]} 58.
f4+ {[%clk 0:00:12.8]} 58... Kh6 {[%clk 0:00:41]} 59. Kf3 {[%clk 0:00:12.4]}
59... Ra2 {[%clk 0:00:40.1]} 60. Rc4 {[%clk 0:00:12]} 60... Rdd2 {[%clk
0:00:41.1]} 61. Rc6 {[%clk 0:00:12.7]} 61... Rf2+ {[%clk 0:00:42.5]} 62. Ke4
{[%clk 0:00:14.2]} 62... Ra4+ {[%clk 0:00:43.8]} 63. Nc4 {[%clk 0:00:10.8]}
63... Kg7 {[%clk 0:00:42.4]} 64. g5 {[%clk 0:00:11.1]} 64... Rh2 {[%clk
0:00:43]} 65. h6+ {[%clk 0:00:09.6]} 65... Kf7 {[%clk 0:00:44.4]} 66. Kd4 {[%clk
0:00:08.8]} 66... Rf2 {[%clk 0:00:44.3]} 67. Ke3 {[%clk 0:00:09.9]} 67... Rc2
{[%clk 0:00:44.5]} 68. Nd6+ {[%clk 0:00:10.9]} 68... Kg6 {[%clk 0:00:45.9]} 69.
Rxc2 {[%clk 0:00:12.8]} 69... Ra3+ {[%clk 0:00:46.6]} 70. Ke4 {[%clk 0:00:13.7]}
70... Kh5 {[%clk 0:00:48.5]} 71. h7 {[%clk 0:00:14]} 71... Ra4+ {[%clk
0:00:49.5]} 1-0

[Event "*** Titled Tuesday 3|2 Blitz"]
[Site "Chess.com"]
[Date "2017.03.07"]
[Round "3"]
[White "olgerts_indricans"]
[Black "HaryKane"]
[Result "0-1"]
[WhiteElo "2187"]
[BlackElo "2284"]
[TimeControl "180+2"]
[EndTime "13:41:28 PST"]
[Termination "HaryKane won by resignation"]

1. e4 {[%clk 0:03:02]} 1... e5 {[%clk 0:03:00.6]} 2. Nf3 {[%clk 0:02:57.9]} 2...
Nc6 {[%clk 0:03:01.6]} 3. Bc4 {[%clk 0:02:57.9]} 3... Bc5 {[%clk 0:03:01.9]} 4.
c3 {[%clk 0:02:57.2]} 4... Nf6 {[%clk 0:03:02]} 5. O-O {[%clk 0:02:55.5]} 5...
d6 {[%clk 0:03:02.7]} 6. d4 {[%clk 0:02:54.7]} 6... Bb6 {[%clk 0:03:03.7]} 7.
dxe5 {[%clk 0:02:53.8]} 7... Nxe5 {[%clk 0:03:04.6]} 8. Nxe5 {[%clk 0:02:53.4]}
8... dxe5 {[%clk 0:03:06.5]} 9. Qxd8+ {[%clk 0:02:45.2]} 9... Kxd8 {[%clk
0:03:08.4]} 10. Re1 {[%clk 0:02:37.5]} 10... Ke7 {[%clk 0:03:06.9]} 11. Nd2
{[%clk 0:02:31.4]} 11... Be6 {[%clk 0:02:44.8]} 12. Bxe6 {[%clk 0:02:30.5]}
12... Kxe6 {[%clk 0:02:46.7]} 13. Nc4 {[%clk 0:02:30.5]} 13... Rhd8 {[%clk
0:02:43.4]} 14. Bg5 {[%clk 0:02:30.1]} 14... Rd7 {[%clk 0:02:37.2]} 15. Bxf6
{[%clk 0:02:24.6]} 15... Kxf6 {[%clk 0:02:32.5]} 16. Rad1 {[%clk 0:02:20.4]}
16... Rad8 {[%clk 0:02:33.1]} 17. Rxd7 {[%clk 0:02:20]} 17... Rxd7 {[%clk
0:02:35]} 18. Kf1 {[%clk 0:02:20.1]} 18... Bc5 {[%clk 0:02:33.5]} 19. Ke2 {[%clk
0:02:16.5]} 19... b5 {[%clk 0:02:33]} 20. Ne3 {[%clk 0:02:16.8]} 20... g6 {[%clk
0:02:26.6]} 21. Nd5+ {[%clk 0:02:08.8]} 21... Ke6 {[%clk 0:02:23.8]} 22. f3
{[%clk 0:02:05.7]} 22... c6 {[%clk 0:02:23.9]} 23. Ne3 {[%clk 0:02:05.5]} 23...
f5 {[%clk 0:02:23.8]} 24. exf5+ {[%clk 0:01:53.2]} 24... gxf5 {[%clk 0:02:25.7]}
25. g4 {[%clk 0:01:54.2]} 25... fxg4 {[%clk 0:02:10.3]} 26. fxg4 {[%clk
0:01:50]} 26... h5 {[%clk 0:02:03.5]} 27. h3 {[%clk 0:01:38.5]} 27... Rh7 {[%clk
0:01:40.3]} 28. Kf3 {[%clk 0:01:28.4]} 28... hxg4+ {[%clk 0:01:39.6]} 29. Kxg4
{[%clk 0:01:25.9]} 29... Rg7+ {[%clk 0:01:33.4]} 30. Kf3 {[%clk 0:01:26.1]}
30... Rf7+ {[%clk 0:01:33.6]} 31. Ke2 {[%clk 0:01:24]} 31... e4 {[%clk
0:01:31.9]} 32. Ng4 {[%clk 0:01:12.2]} 32... Rf3 {[%clk 0:01:25.9]} 33. Rh1
{[%clk 0:01:09.7]} 33... Rg3 {[%clk 0:01:26.9]} 34. Rh2 {[%clk 0:01:07.9]} 34...
Kf5 {[%clk 0:01:19]} 35. Nf2 {[%clk 0:01:02.7]} 35... Kf4 {[%clk 0:01:12]} 36.
h4 {[%clk 0:01:02.8]} 36... Re3+ {[%clk 0:01:11.8]} 37. Kd2 {[%clk 0:01:02.2]}
37... Kg3 {[%clk 0:01:11.3]} 38. Nxe4+ {[%clk 0:00:30.1]} 38... Rxe4 {[%clk
0:01:11]} 39. Rh1 {[%clk 0:00:31]} 39... Kg2 {[%clk 0:01:11.1]} 40. Rd1 {[%clk
0:00:28.4]} 40... Rxh4 {[%clk 0:01:11.7]} 41. Kc2 {[%clk 0:00:28.7]} 41... Rh6
{[%clk 0:01:12.5]} 42. b4 {[%clk 0:00:28.7]} 42... Bb6 {[%clk 0:01:13.7]} 43.
Re1 {[%clk 0:00:29.1]} 43... Kf3 {[%clk 0:01:13.5]} 44. Re8 {[%clk 0:00:29.3]}
44... Kf4 {[%clk 0:01:13.5]} 45. Kb3 {[%clk 0:00:29.6]} 45... Rh1 {[%clk
0:01:13.5]} 46. a4 {[%clk 0:00:29.2]} 46... Rb1+ {[%clk 0:01:08.5]} 47. Kc2
{[%clk 0:00:28.9]} 47... Rh1 {[%clk 0:01:02.3]} 48. a5 {[%clk 0:00:28.9]} 48...
Be3 {[%clk 0:01:01.8]} 49. Re6 {[%clk 0:00:25.1]} 49... Rh2+ {[%clk 0:01:01.4]}
50. Kb3 {[%clk 0:00:23.9]} 50... c5 {[%clk 0:01:02.5]} 51. bxc5 {[%clk
0:00:19.8]} 51... Bxc5 {[%clk 0:01:04.4]} 52. a6 {[%clk 0:00:19.9]} 52... Kf5
{[%clk 0:01:03.5]} 53. Rc6 {[%clk 0:00:19.3]} 53... Bb6 {[%clk 0:01:03.8]} 54.
Kb4 {[%clk 0:00:19]} 54... Rb2+ {[%clk 0:01:03.4]} 55. Ka3 {[%clk 0:00:18.7]}
55... Rb1 {[%clk 0:01:04.5]} 56. Ka2 {[%clk 0:00:18.9]} 56... Rd1 {[%clk
0:01:03.6]} 57. Kb3 {[%clk 0:00:17.4]} 57... Ke5 {[%clk 0:01:03.8]} 58. Kb4
{[%clk 0:00:17.3]} 58... Kd5 {[%clk 0:01:00]} 59. Rh6 {[%clk 0:00:11.2]} 59...
Rb1+ {[%clk 0:01:00.1]} 60. Ka3 {[%clk 0:00:10.5]} 60... Kc4 {[%clk 0:01:00.3]}
61. Ka2 {[%clk 0:00:09]} 61... Rd1 {[%clk 0:00:58.1]} 62. Rh5 {[%clk 0:00:08]}
62... Rd5 {[%clk 0:00:56]} 63. Rxd5 {[%clk 0:00:06.9]} 63... Kxd5 {[%clk
0:00:56.8]} 64. Kb3 {[%clk 0:00:07.3]} 64... Kc5 {[%clk 0:00:58.1]} 65. Kc2
{[%clk 0:00:07.4]} 65... Kc4 {[%clk 0:00:58.6]} 66. Kb2 {[%clk 0:00:07.8]} 66...
Ba5 {[%clk 0:00:59.9]} 0-1